[Event "EYTCC Open U18 2022"]
[Site "Thessaloniki"]
[Date "2022.07.15"]
[Round "4.30"]
[White "Xhembulla, Aleksander"]
[Black "Karamichos, Michail"]
[Result "1-0"]
[ECO "C84"]
[WhiteElo "1909"]
[BlackElo "1839"]
[Annotator "ChessBase"]
[PlyCount "155"]
[EventDate "2022.07.12"]
[EventType "team-tourn"]
[EventCountry "GRE"]
[SourceTitle "playchess.com"]
[Source "ChessBase"]
[SourceQuality "1"]
[WhiteTeam "Albania"]
[BlackTeam "Greece"]
[WhiteTeamCountry "ALB"]
[BlackTeamCountry "GRE"]
[TimeControl "40/5400+30:1800+30"]

1. e4 {[%emt 0:00:03]} e5 {[%emt 0:00:10]} 2. Nf3 {[%emt 0:00:03]} Nc6 {[%emt 0:00:10]} 3. Bb5 {[%emt 0:00:06]} a6 {[%emt 0:00:25]} 4. Ba4 {[%emt 0:00:04]} Nf6 {[%emt 0:00:07]} 5. O-O {[%emt 0:00:06]} Be7 {[%emt 0:00:07]} 6. d3 {[%emt 0:00:04]} b5 {[%emt 0:00:07]} 7. Bb3 {[%emt 0:00:05]} d6 {[%emt 0:00:09]} 8. a3 {[%emt 0:00:05]} O-O {[%emt 0:01:01]} 9. Nc3 {[%emt 0:00:09]} Bg4 {[%emt 0:03:22]} 10. Be3 {[%emt 0:00:08]} Nd4 {[%emt 0:13:42]} 11. Bxd4 {[%emt 0:00:07]} exd4 {[%emt 0:00:06]} 12. Nd5 {[%emt 0:00:04]} c5 {[%emt 0:01:40]} 13. Nxf6+ {[%emt 0:26:15]} Bxf6 {[%emt 0:00:50]} 14. Bd5 {[%emt 0:01:17]} Rb8 {[%emt 0:01:03]} 15. a4 {[%emt 0:04:07]} Be6 {[%emt 0:17:23]} 16. axb5 {[%emt 0:06:51]} axb5 {[%emt 0:00:07]} 17. Ra6 {[%emt 0:01:44]} Rb6 {[%emt 0:03:49]} 18. Qa1 {[%emt 0:00:54]} Bxd5 {[%emt 0:06:29]} 19. exd5 {[%emt 0:00:29]} Qc7 {[%emt 0:03:19]} 20. Qa5 {[%emt 0:11:08]} Rfb8 {[%emt 0:01:21]} 21. Re1 {[%emt 0:04:15]} Kf8 {[%emt 0:04:14]} 22. Nd2 {[%emt 0:13:22]} Bd8 {[%emt 0:05:10]} 23. Ra7 {[%emt 0:01:23]} R6b7 {[%emt 0:05:21]} 24. Qxc7 {[%emt 0:00:16]} Bxc7 {[%emt 0:00:55]} 25. Ra6 {[%emt 0:03:29]} Rb6 {[%emt 0:02:35]} 26. Ra2 {[%emt 0:00:11]} Re8 {[%emt 0:02:53]} 27. Re4 {[%emt 0:02:28]} Rxe4 {[%emt 0:06:53]} 28. Nxe4 {[%emt 0:00:12]} Ke7 {[%emt 0:01:45]} 29. b4 {[%emt 0:14:04]} cxb4 {[%emt 0:05:58]} 30. Ra7 {[%emt 0:00:03]} Kd7 {[%emt 0:01:20]} 31. Nd2 {[%emt 0:00:58]} Rb8 {[%emt 0:03:59]} 32. Kf1 {[%emt 0:01:58]} Re8 {[%emt 0:02:42]} 33. Rb7 {[%emt 0:00:42]} Rb8 {[%emt 0:00:22]} 34. Ra7 {[%emt 0:01:28]} Re8 {[%emt 0:00:11]} 35. Rb7 {[%emt 0:00:10]} Rb8 {[%emt 0:00:04]} 36. Rxb8 {[%emt 0:00:14]} Bxb8 {[%emt 0:00:04]} 37. Nb3 {[%emt 0:01:48]} Ba7 {[%emt 0:00:47]} 38. g4 {[%emt 0:01:23]} Bb6 {[%emt 0:01:04]} 39. Ke2 {[%emt 0:02:14]} Ke7 {[%emt 0:00:45]} 40. Kf3 {[%emt 0:00:00]} Kf6 {[%emt 0:00:00]} 41. Kf4 {[%emt 0:00:59]} Kg6 {[%emt 0:05:15]} 42. Nd2 {[%emt 0:07:16]} Kf6 {[%emt 0:12:02]} 43. h4 {[%emt 0:05:14]} h6 {[%emt 0:00:14]} 44. Nf3 {[%emt 0:07:50]} Ke7 {[%emt 0:00:29]} 45. Ke4 {[%emt 0:00:35]} Kd7 {[%emt 0:02:13]} 46. h5 {[%emt 0:01:20]} Ke7 {[%emt 0:01:24]} 47. Kf5 {[%emt 0:00:18]} Ke8 {[%emt 0:01:17]} 48. Ng1 {[%emt 0:00:56]} Bd8 {[%emt 0:07:15]} 49. Ne2 {[%emt 0:00:38]} Bb6 {[%emt 0:00:19]} 50. f3 {[%emt 0:02:13]} Ke7 {[%emt 0:00:19]} 51. Ng1 {[%emt 0:00:08]} Kd7 {[%emt 0:01:08]} 52. f4 {[%emt 0:00:11]} Bd8 {[%emt 0:00:49]} 53. Nf3 {[%emt 0:00:17]} Bb6 {[%emt 0:00:56]} 54. g5 {[%emt 0:01:26]} Ke7 {[%emt 0:00:37]} 55. Nh2 {[%emt 0:02:36]} Kf8 {[%emt 0:00:28]} 56. Ng4 {[%emt 0:02:31]} hxg5 {[%emt 0:00:07]} 57. fxg5 {[%emt 0:00:05]} Bd8 {[%emt 0:00:26]} 58. Nf2 {[%emt 0:01:43]} Kg8 {[%emt 0:00:19]} 59. Kf4 {[%emt 0:00:53]} Kh7 {[%emt 0:00:33]} 60. Ne4 {[%emt 0:00:12]} Be7 {[%emt 0:01:09]} 61. Ng3 {[%emt 0:00:19]} g6 {[%emt 0:00:45]} 62. Kg4 {[%emt 0:02:22]} f6 {[%emt 0:00:54]} 63. hxg6+ {[%emt 0:00:24]} Kxg6 {[%emt 0:00:07]} 64. Nf5 {[%emt 0:00:06]} Bf8 {[%emt 0:05:26]} 65. Nh4+ {[%emt 0:00:15]} Kf7 {[%emt 0:01:45]} 66. g6+ {[%emt 0:00:07]} Ke7 {[%emt 0:00:20]} 67. Nf5+ {[%emt 0:00:21]} Kd7 {[%emt 0:00:05]} 68. g7 {[%emt 0:00:14]} Bxg7 {[%emt 0:00:03]} 69. Nxg7 {[%emt 0:00:03]} Kc7 {[%emt 0:00:05]} 70. Kf5 {[%emt 0:00:06]} Kb6 {[%emt 0:00:06]} 71. Ne6 {[%emt 0:00:13]} Ka5 {[%emt 0:00:35]} 72. Nxd4 {[%emt 0:00:10]} Ka4 {[%emt 0:00:59]} 73. Kxf6 {[%emt 0:00:25]} Ka3 {[%emt 0:00:04]} 74. Ke6 {[%emt 0:00:07]} Kb2 {[%emt 0:00:03]} 75. Kxd6 {[%emt 0:00:08]} Kc3 {[%emt 0:00:04]} 76. Kc5 {[%emt 0:00:06]} b3 {[%emt 0:00:12]} 77. cxb3 {[%emt 0:00:19]} Kxd3 {[%emt 0:00:16]} 78. d6 {[%emt 0:00:04]} 1-0

[Event "EYTCC Open U18 2022"]
[Site "Thessaloniki"]
[Date "2022.07.15"]
[Round "4.31"]
[White "Tagkaloglou, Savvas Stefanos"]
[Black "Ramaj, Ergit"]
[Result "1-0"]
[ECO "B76"]
[WhiteElo "1724"]
[BlackElo "1980"]
[Annotator "ChessBase"]
[PlyCount "79"]
[EventDate "2022.07.12"]
[EventType "team-tourn"]
[EventCountry "GRE"]
[SourceTitle "playchess.com"]
[Source "ChessBase"]
[SourceQuality "1"]
[WhiteTeam "Greece"]
[BlackTeam "Albania"]
[WhiteTeamCountry "GRE"]
[BlackTeamCountry "ALB"]
[TimeControl "40/5400+30:1800+30"]

1. e4 {[%emt 0:00:04]} c5 {[%emt 0:00:05]} 2. Nf3 {[%emt 0:00:04]} d6 {[%emt 0:00:02]} 3. d4 {[%emt 0:00:09]} cxd4 {[%emt 0:00:06]} 4. Nxd4 {[%emt 0:00:04]} Nf6 {[%emt 0:00:08]} 5. Nc3 {[%emt 0:00:06]} g6 {[%emt 0:00:08]} 6. Be3 {[%emt 0:00:09]} Bg7 {[%emt 0:00:07]} 7. f3 {[%emt 0:00:06]} O-O {[%emt 0:00:06]} 8. Qd2 {[%emt 0:01:07]} Nc6 {[%emt 0:00:08]} 9. g4 {[%emt 0:00:10]} Be6 {[%emt 0:00:15]} 10. Nxe6 {[%emt 0:00:16]} fxe6 {[%emt 0:00:02]} 11. O-O-O {[%emt 0:00:28]} Ne5 {[%emt 0:09:16]} 12. Be2 {[%emt 0:00:53]} Qc8 {[%emt 0:02:33]} 13. h4 {[%emt 0:01:51]} Nfd7 {[%emt 0:11:28]} 14. f4 {[%emt 0:10:56]} Nc4 {[%emt 0:08:48]} 15. Bxc4 {[%emt 0:00:04]} Qxc4 {[%emt 0:00:10]} 16. e5 {[%emt 0:02:57]} Rac8 {[%emt 0:05:10]} 17. h5 {[%emt 0:13:47]} b5 {[%emt 0:06:16]} 18. Qh2 {[%emt 0:04:49]} b4 {[%emt 0:11:04]} 19. Rd4 {[%emt 0:04:21]} Qc6 {[%emt 0:04:05]} 20. hxg6 {[%emt 0:02:52]} hxg6 {[%emt 0:00:20]} 21. Ne4 {[%emt 0:04:06]} Kf7 {[%emt 0:06:53]} 22. Ng5+ {[%emt 0:09:50]} Ke8 {[%emt 0:00:01]} 23. Nxe6 {[%emt 0:03:19]} Rh8 {[%emt 0:01:44]} 24. Nxg7+ {[%emt 0:00:02]} Kf7 {[%emt 0:00:10]} 25. Nh5 {[%emt 0:00:47]} gxh5 {[%emt 0:08:33]} 26. gxh5 {[%emt 0:00:06]} dxe5 {[%emt 0:00:53]} 27. fxe5 {[%emt 0:00:29]} Nxe5 {[%emt 0:00:57]} 28. Rf1+ {[%emt 0:00:49]} Ke8 {[%emt 0:01:52]} 29. Qe2 {[%emt 0:02:49]} Rg8 {[%emt 0:04:36]} 30. Qf2 {[%emt 0:10:40]} Qe6 {[%emt 0:04:20]} 31. Qf5 {[%emt 0:02:09]} Qa6 {[%emt 0:08:53]} 32. h6 {[%emt 0:01:37]} b3 {[%emt 0:01:45]} 33. h7 {[%emt 0:01:15]} Rh8 {[%emt 0:02:55]} 34. Qf8+ {[%emt 0:00:22]} Rxf8 {[%emt 0:00:40]} 35. Rxf8+ Kxf8 {[%emt 0:00:12]} 36. h8=Q+ {[%emt 0:00:01]} Kf7 {[%emt 0:00:48]} 37. Qh7+ {[%emt 0:00:19]} Kf6 {[%emt 0:02:24]} 38. Rf4+ {[%emt 0:00:08]} Ke6 {[%emt 0:00:12]} 39. Qh6+ {[%emt 0:00:06]} Kd5 {[%emt 0:00:04]} 40. Qxa6 {[%emt 0:00:00]} 1-0

[Event "EYTCC Open U18 2022"]
[Site "Thessaloniki"]
[Date "2022.07.15"]
[Round "4.32"]
[White "Boci, Petro"]
[Black "Karakotsios, Konstantinos"]
[Result "1-0"]
[ECO "C18"]
[WhiteElo "1709"]
[BlackElo "1376"]
[Annotator "NA"]
[PlyCount "103"]
[EventDate "2022.07.12"]
[EventType "team-tourn"]
[EventCountry "GRE"]
[SourceTitle "playchess.com"]
[Source "ChessBase"]
[SourceQuality "1"]
[WhiteTeam "Albania"]
[BlackTeam "Greece"]
[WhiteTeamCountry "ALB"]
[BlackTeamCountry "GRE"]
[TimeControl "40/5400+30:1800+30"]

1. e4 {[%emt 0:00:12]} e6 {[%emt 0:00:16]} 2. d4 {[%emt 0:00:11]} d5 {[%emt 0:00:04]} 3. Nc3 {[%emt 0:00:13]} Bb4 {[%emt 0:00:17]} 4. e5 {[%emt 0:00:14]} c5 {[%emt 0:01:05]} 5. a3 {[%emt 0:00:09]} Bxc3+ {[%emt 0:01:12]} 6. bxc3 {[%emt 0:00:06]} Qa5 {[%emt 0:02:02]} 7. Bd2 {[%emt 0:00:12]} Qa4 {[%emt 0:00:42]} 8. Qg4 {[%emt 0:00:31]} Kf8 {[%emt 0:02:20]} 9. h4 {[%emt 0:00:58]} h5 {[%emt 0:00:20]} 10. Qf4 {[%emt 0:02:21]} Nc6 {[%emt 0:08:55]} 11. Nf3 {[%emt 0:03:17]} Qxc2 {[%emt 0:10:03]} 12. Ng5 {[%emt 0:05:55]} Nh6 {[%emt 0:03:04]} 13. Rh3 {[%emt 0:05:05]} c4 {[%emt 0:16:42]} 14. Be2 Nf5 {[%emt 0:11:52]} 15. Bc1 {[%emt 0:19:55]} Qa4 {[%emt 0:12:24]} 16. g4 {[%emt 0:05:04]} hxg4 {[%emt 0:01:47]} 17. Bxg4 {[%emt 0:00:40]} Nce7 {[%emt 0:01:51]} 18. h5 {[%emt 0:03:46]} Qc6 {[%emt 0:04:00]} 19. a4 {[%emt 0:01:19]} Nh6 {[%emt 0:04:19]} 20. Ba3 {[%emt 0:01:16]} Ke8 {[%emt 0:01:17]} 21. Bd1 {[%emt 0:02:05]} a5 {[%emt 0:02:03]} 22. Bc2 {[%emt 0:03:38]} Nef5 {[%emt 0:02:34]} 23. Kd2 {[%emt 0:02:59]} Bd7 {[%emt 0:01:28]} 24. Nf3 {[%emt 0:02:54]} Kd8 {[%emt 0:03:29]} 25. Rb1 {[%emt 0:01:41]} Ra6 {[%emt 0:01:28]} 26. Rg1 {[%emt 0:02:18]} Ra8 {[%emt 0:01:48]} 27. Nh4 {[%emt 0:00:31]} b6 {[%emt 0:02:49]} 28. Nxf5 {[%emt 0:00:54]} Nxf5 {[%emt 0:00:02]} 29. Bxf5 {[%emt 0:00:11]} exf5 {[%emt 0:00:12]} 30. Rxg7 {[%emt 0:04:07]} Qxa4 {[%emt 0:02:32]} 31. Qg5+ {[%emt 0:01:10]} Kc8 {[%emt 0:00:36]} 32. Bd6 {[%emt 0:04:18]} Qa2+ {[%emt 0:01:05]} 33. Ke1 {[%emt 0:02:09]} Qb1+ {[%emt 0:00:14]} 34. Ke2 {[%emt 0:00:49]} Qc2+ {[%emt 0:01:05]} 35. Kf1 {[%emt 0:01:36]} Qb1+ {[%emt 0:00:27]} 36. Kg2 {[%emt 0:00:33]} Qe4+ {[%emt 0:00:24]} 37. Kh2 {[%emt 0:00:25]} f4 {[%emt 0:00:46]} 38. Rh4 {[%emt 0:00:49]} Qf5 {[%emt 0:00:24]} 39. Qxf5 {[%emt 0:01:30]} Bxf5 {[%emt 0:00:01]} 40. Rxf7 {[%emt 0:00:00]} Bg6 {[%emt 0:00:00]} 41. Rc7+ {[%emt 0:01:20]} Kd8 {[%emt 0:02:18]} 42. h6 {[%emt 0:03:49]} a4 {[%emt 0:14:59]} 43. Rg7 {[%emt 0:00:41]} Bh7 {[%emt 0:01:21]} 44. Ba3 {[%emt 0:03:59]} Rc8 {[%emt 0:06:21]} 45. Rxf4 {[%emt 0:03:16]} Rc7 {[%emt 0:01:29]} 46. e6 {[%emt 0:04:05]} Be4 {[%emt 0:02:04]} 47. e7+ {[%emt 0:01:32]} Kd7 {[%emt 0:00:26]} 48. e8=Q+ {[%emt 0:02:30]} Kxe8 {[%emt 0:00:18]} 49. Rxc7 {[%emt 0:00:12]} Rxh6+ {[%emt 0:00:15]} 50. Kg3 {[%emt 0:00:11]} Rg6+ {[%emt 0:00:11]} 51. Rg4 {[%emt 0:00:34]} Rxg4+ {[%emt 0:00:30]} 52. Kxg4 {[%emt 0:00:08]} 1-0

[Event "EYTCC Open U18 2022"]
[Site "Thessaloniki"]
[Date "2022.07.15"]
[Round "4.33"]
[White "Risteski, Emil"]
[Black "Magalakis, Stefanos"]
[Result "0-1"]
[ECO "C55"]
[WhiteElo "2405"]
[BlackElo "2181"]
[Annotator "ChessBase"]
[PlyCount "70"]
[EventDate "2022.07.12"]
[EventType "team-tourn"]
[EventCountry "GRE"]
[SourceTitle "playchess.com"]
[Source "ChessBase"]
[SourceQuality "1"]
[WhiteTeam "Macedonia"]
[BlackTeam "Greece"]
[WhiteTeamCountry "MKD"]
[BlackTeamCountry "GRE"]
[TimeControl "40/5400+30:1800+30"]

1. e4 {[%emt 0:00:15]} e5 {[%emt 0:00:07]} 2. Nf3 {[%emt 0:00:09]} Nc6 {[%emt 0:00:05]} 3. Bc4 {[%emt 0:00:28]} Nf6 {[%emt 0:00:07]} 4. d3 {[%emt 0:00:06]} h6 {[%emt 0:00:06]} 5. O-O {[%emt 0:00:08]} d6 {[%emt 0:00:12]} 6. a4 {[%emt 0:00:09]} g6 {[%emt 0:00:29]} 7. a5 {[%emt 0:00:09]} a6 {[%emt 0:00:10]} 8. Nc3 {[%emt 0:00:10]} Bg7 {[%emt 0:05:43]} 9. h3 {[%emt 0:00:19]} O-O {[%emt 0:04:20]} 10. Be3 {[%emt 0:00:33]} Be6 {[%emt 0:02:36]} 11. Bxe6 {[%emt 0:00:15]} fxe6 {[%emt 0:00:01]} 12. Ne2 {[%emt 0:00:12]} Nh5 {[%emt 0:07:19]} 13. c3 {[%emt 0:00:13]} Kh7 {[%emt 0:06:38]} 14. Kh2 {[%emt 0:17:55]} d5 {[%emt 0:27:41]} 15. b4 {[%emt 0:06:49]} d4 {[%emt 0:06:34]} 16. Bd2 {[%emt 0:00:49]} dxc3 {[%emt 0:00:39]} 17. Bxc3 {[%emt 0:00:08]} Qd6 {[%emt 0:00:20]} 18. Ng3 {[%emt 0:01:43]} Nxg3 {[%emt 0:08:15]} 19. fxg3 {[%emt 0:00:10]} Rad8 20. Qb3 Qxd3 {[%emt 0:01:38]} 21. Rad1 {[%emt 0:09:02]} Qxe4 {[%emt 0:02:16]} 22. Rfe1 {[%emt 0:01:09]} Qf5 {[%emt 0:00:48]} 23. Nh4 {[%emt 0:01:34]} Qf7 {[%emt 0:01:00]} 24. b5 {[%emt 0:00:49]} Rxd1 {[%emt 0:01:22]} 25. Rxd1 {[%emt 0:00:08]} Nd4 {[%emt 0:01:11]} 26. Bxd4 {[%emt 0:00:14]} exd4 {[%emt 0:00:01]} 27. bxa6 {[%emt 0:00:06]} bxa6 {[%emt 0:00:01]} 28. Qc4 e5 {[%emt 0:02:20]} 29. Qxa6 {[%emt 0:00:14]} e4 {[%emt 0:08:24]} 30. Qc6 {[%emt 0:00:12]} Qe8 {[%emt 0:08:25]} 31. Qxc7 {[%emt 0:01:30]} Qe5 {[%emt 0:05:57]} 32. Qb6 {[%emt 0:03:20]} Qxg3+ {[%emt 0:00:48]} 33. Kxg3 {[%emt 0:00:41]} Be5+ {[%emt 0:00:05]} 34. Kg4 {[%emt 0:00:02]} h5+ {[%emt 0:00:05]} 35. Kg5 Bf4# 0-1

[Event "EYTCC Open U18 2022"]
[Site "Thessaloniki"]
[Date "2022.07.15"]
[Round "4.34"]
[White "Georgiadis, Athanasios Kat"]
[Black "Veljanoski, Andrej"]
[Result "0-1"]
[ECO "C68"]
[WhiteElo "1689"]
[BlackElo "2162"]
[Annotator "ChessBase"]
[PlyCount "112"]
[EventDate "2022.07.12"]
[EventType "team-tourn"]
[EventCountry "GRE"]
[SourceTitle "playchess.com"]
[Source "ChessBase"]
[SourceQuality "1"]
[WhiteTeam "Greece"]
[BlackTeam "Macedonia"]
[WhiteTeamCountry "GRE"]
[BlackTeamCountry "MKD"]
[TimeControl "40/5400+30:1800+30"]

1. e4 {[%emt 0:00:06]} e5 {[%emt 0:00:05]} 2. Nf3 {[%emt 0:00:10]} Nc6 {[%emt 0:00:07]} 3. Bb5 {[%emt 0:00:05]} a6 {[%emt 0:00:04]} 4. Bxc6 {[%emt 0:00:16]} dxc6 {[%emt 0:00:36]} 5. O-O {[%emt 0:00:08]} Bd6 {[%emt 0:01:44]} 6. d4 {[%emt 0:00:07]} exd4 {[%emt 0:00:05]} 7. Qxd4 {[%emt 0:00:11]} f6 {[%emt 0:00:15]} 8. Nbd2 {[%emt 0:02:31]} Be6 {[%emt 0:01:37]} 9. Qc3 {[%emt 0:01:44]} Qd7 {[%emt 0:06:26]} 10. Nd4 {[%emt 0:03:36]} O-O-O {[%emt 0:03:05]} 11. Nxe6 {[%emt 0:03:38]} Qxe6 {[%emt 0:00:06]} 12. Qc4 {[%emt 0:00:58]} Qg4 {[%emt 0:02:27]} 13. h3 {[%emt 0:02:38]} Qh5 {[%emt 0:01:05]} 14. Re1 {[%emt 0:09:20]} Ne7 {[%emt 0:02:53]} 15. Qe6+ {[%emt 0:07:59]} Kb8 {[%emt 0:03:54]} 16. Nc4 {[%emt 0:01:28]} Rhe8 {[%emt 0:01:29]} 17. Nxd6 {[%emt 0:01:01]} Rxd6 {[%emt 0:03:32]} 18. Qg4 {[%emt 0:05:24]} Qf7 {[%emt 0:05:58]} 19. Bf4 {[%emt 0:11:38]} Re6 {[%emt 0:01:59]} 20. Re3 {[%emt 0:05:15]} Ng6 {[%emt 0:06:34]} 21. Rae1 {[%emt 0:03:43]} Qe7 {[%emt 0:03:59]} 22. Bg3 {[%emt 0:01:42]} Qb4 {[%emt 0:03:17]} 23. b3 {[%emt 0:01:06]} Qa3 {[%emt 0:00:59]} 24. Qh5 {[%emt 0:04:31]} Nf8 {[%emt 0:01:07]} 25. e5 {[%emt 0:07:20]} g6 {[%emt 0:00:42]} 26. Qe2 {[%emt 0:01:10]} f5 {[%emt 0:02:28]} 27. f4 {[%emt 0:00:35]} Qxa2 {[%emt 0:02:39]} 28. Qd2 {[%emt 0:06:41]} Qa3 {[%emt 0:03:23]} 29. Rd3 {[%emt 0:02:21]} Qe7 {[%emt 0:00:38]} 30. Rd1 {[%emt 0:00:07]} b6 {[%emt 0:00:33]} 31. Bf2 {[%emt 0:05:59]} Kb7 {[%emt 0:03:03]} 32. b4 {[%emt 0:00:18]} g5 {[%emt 0:02:53]} 33. g3 {[%emt 0:00:01]} gxf4 {[%emt 0:01:45]} 34. gxf4 {[%emt 0:00:02]} Rg6+ {[%emt 0:00:29]} 35. Kh1 {[%emt 0:00:13]} Qe6 {[%emt 0:01:29]} 36. Qe3 {[%emt 0:06:19]} Qc4 {[%emt 0:03:21]} 37. c3 Ne6 {[%emt 0:02:56]} 38. Bg3 {[%emt 0:05:34]} Reg8 {[%emt 0:00:44]} 39. Bh2 {[%emt 0:00:43]} Rg2 {[%emt 0:02:59]} 40. Rd7 {[%emt 0:00:00]} Qa2 {[%emt 0:00:00]} 41. R7d2 {[%emt 0:02:37]} Rxd2 {[%emt 0:01:01]} 42. Qxd2 {[%emt 0:00:10]} Qc4 {[%emt 0:00:57]} 43. Qd3 {[%emt 0:00:41]} Qxd3 {[%emt 0:02:03]} 44. Rxd3 {[%emt 0:00:04]} Rd8 {[%emt 0:00:11]} 45. Rxd8 {[%emt 0:00:25]} Nxd8 {[%emt 0:00:03]} 46. Kg2 {[%emt 0:02:17]} c5 {[%emt 0:01:03]} 47. bxc5 {[%emt 0:00:18]} b5 {[%emt 0:00:10]} 48. Kf3 {[%emt 0:01:28]} Kc6 {[%emt 0:00:32]} 49. Bg1 {[%emt 0:01:13]} Kd5 {[%emt 0:00:32]} 50. Ke2 {[%emt 0:00:34]} Ne6 {[%emt 0:01:01]} 51. Be3 {[%emt 0:00:06]} Kc4 {[%emt 0:00:37]} 52. Kd2 {[%emt 0:03:06]} Kb3 {[%emt 0:02:18]} 53. Kd3 {[%emt 0:00:43]} a5 {[%emt 0:01:25]} 54. Kd2 {[%emt 0:02:33]} Kb2 {[%emt 0:02:15]} 55. Bd4 {[%emt 0:00:12]} Kb1 {[%emt 0:00:38]} 56. c4 {[%emt 0:01:44]} b4 {[%emt 0:00:07]} 0-1

[Event "EYTCC Open U18 2022"]
[Site "Thessaloniki"]
[Date "2022.07.15"]
[Round "4.35"]
[White "Zlatkov, Anton"]
[Black "Gerasopoulos, Nikolaos"]
[Result "1-0"]
[ECO "C10"]
[WhiteElo "2149"]
[BlackElo "1526"]
[Annotator "ChessBase"]
[PlyCount "47"]
[EventDate "2022.07.12"]
[EventType "team-tourn"]
[EventCountry "GRE"]
[SourceTitle "playchess.com"]
[Source "ChessBase"]
[SourceQuality "1"]
[WhiteTeam "Macedonia"]
[BlackTeam "Greece"]
[WhiteTeamCountry "MKD"]
[BlackTeamCountry "GRE"]
[TimeControl "40/5400+30:1800+30"]

1. e4 {[%emt 0:00:02]} e6 {[%emt 0:00:06]} 2. d4 {[%emt 0:00:33]} d5 {[%emt 0:00:06]} 3. Nd2 {[%emt 0:00:07]} dxe4 {[%emt 0:00:05]} 4. Nxe4 {[%emt 0:00:05]} Nd7 {[%emt 0:00:03]} 5. Nf3 {[%emt 0:00:35]} Ngf6 {[%emt 0:00:07]} 6. Nxf6+ {[%emt 0:00:15]} Nxf6 {[%emt 0:00:08]} 7. Bd3 {[%emt 0:00:51]} Be7 {[%emt 0:00:12]} 8. c3 {[%emt 0:01:07]} O-O {[%emt 0:00:16]} 9. Qe2 {[%emt 0:00:38]} b6 {[%emt 0:00:38]} 10. Bf4 {[%emt 0:00:55]} Bb7 {[%emt 0:00:43]} 11. O-O-O {[%emt 0:08:52]} Qc8 {[%emt 0:05:50]} 12. h4 {[%emt 0:11:00]} c5 {[%emt 0:04:20]} 13. Be5 {[%emt 0:02:11]} Qc6 {[%emt 0:05:02]} 14. Bc2 {[%emt 0:10:40]} Ne4 {[%emt 0:16:26]} 15. Ng5 {[%emt 0:00:46]} f5 {[%emt 0:06:39]} 16. Qh5 {[%emt 0:02:38]} Nxg5 {[%emt 0:11:39]} 17. hxg5 {[%emt 0:00:48]} Qxg2 {[%emt 0:00:23]} 18. Qxh7+ {[%emt 0:04:12]} Kf7 {[%emt 0:00:06]} 19. Qxg7+ {[%emt 0:00:58]} Ke8 {[%emt 0:00:07]} 20. Ba4+ {[%emt 0:00:21]} Bc6 {[%emt 0:00:18]} 21. Bxc6+ {[%emt 0:00:07]} Qxc6 {[%emt 0:00:07]} 22. Rh7 {[%emt 0:00:15]} Bd6 {[%emt 0:01:40]} 23. Bxd6 {[%emt 0:00:39]} Qxd6 {[%emt 0:00:07]} 24. Qg6+ {[%emt 0:00:32]} 1-0

[Event "EYTCC Open U18 2022"]
[Site "Thessaloniki"]
[Date "2022.07.15"]
[Round "4.36"]
[White "Skodras, Marios Konstantinos"]
[Black "Jovanovski, Teodor"]
[Result "1-0"]
[ECO "C01"]
[WhiteElo "1446"]
[BlackElo "1944"]
[Annotator "ChessBase"]
[PlyCount "113"]
[EventDate "2022.07.12"]
[EventType "team-tourn"]
[EventCountry "GRE"]
[SourceTitle "playchess.com"]
[Source "ChessBase"]
[SourceQuality "1"]
[WhiteTeam "Greece"]
[BlackTeam "Macedonia"]
[WhiteTeamCountry "GRE"]
[BlackTeamCountry "MKD"]
[TimeControl "40/5400+30:1800+30"]

1. e4 {[%emt 0:00:06]} e6 {[%emt 0:00:13]} 2. d4 {[%emt 0:00:10]} d5 {[%emt 0:00:06]} 3. exd5 {[%emt 0:00:04]} exd5 {[%emt 0:00:06]} 4. Bd3 {[%emt 0:00:08]} Nc6 {[%emt 0:00:08]} 5. c3 {[%emt 0:00:06]} Bd6 {[%emt 0:00:07]} 6. Nf3 {[%emt 0:00:42]} Nge7 {[%emt 0:00:31]} 7. O-O {[%emt 0:00:29]} Bg4 {[%emt 0:00:42]} 8. h3 {[%emt 0:00:20]} Bh5 {[%emt 0:04:34]} 9. Bg5 {[%emt 0:01:56]} Qd7 {[%emt 0:01:56]} 10. Nbd2 {[%emt 0:00:33]} f6 {[%emt 0:00:27]} 11. Bh4 {[%emt 0:01:16]} O-O-O {[%emt 0:05:09]} 12. Bg3 {[%emt 0:01:35]} g5 {[%emt 0:03:07]} 13. Bxd6 {[%emt 0:03:27]} Qxd6 {[%emt 0:01:02]} 14. Qc2 {[%emt 0:00:37]} Kb8 {[%emt 0:07:21]} 15. Nh2 {[%emt 0:05:22]} Bg6 {[%emt 0:02:13]} 16. Rae1 {[%emt 0:03:21]} Rdg8 {[%emt 0:10:31]} 17. Re3 {[%emt 0:05:54]} h5 {[%emt 0:03:25]} 18. Rfe1 {[%emt 0:04:59]} Bf7 {[%emt 0:01:06]} 19. Bf5 {[%emt 0:03:21]} Rg7 {[%emt 0:09:50]} 20. b4 {[%emt 0:10:11]} Nxf5 {[%emt 0:09:54]} 21. Qxf5 {[%emt 0:00:02]} Nd8 {[%emt 0:00:36]} 22. Qf3 {[%emt 0:03:03]} Bg6 {[%emt 0:04:14]} 23. Qg3 {[%emt 0:04:42]} Qf8 {[%emt 0:05:17]} 24. Qf3 {[%emt 0:17:06]} Qd6 {[%emt 0:09:13]} 25. Qg3 {[%emt 0:01:22]} Qxg3 {[%emt 0:02:30]} 26. fxg3 {[%emt 0:03:41]} Kc8 {[%emt 0:00:51]} 27. g4 {[%emt 0:01:38]} h4 {[%emt 0:01:07]} 28. Rf3 {[%emt 0:03:45]} Rf8 {[%emt 0:00:45]} 29. Nhf1 {[%emt 0:00:35]} Kd7 {[%emt 0:00:57]} 30. Ne3 {[%emt 0:00:37]} Kd6 {[%emt 0:03:18]} 31. c4 {[%emt 0:03:26]} c6 {[%emt 0:00:16]} 32. cxd5 {[%emt 0:00:30]} cxd5 {[%emt 0:00:09]} 33. Rf5 {[%emt 0:00:25]} Nc6 {[%emt 0:06:31]} 34. Rxd5+ {[%emt 0:02:36]} Kc7 {[%emt 0:00:20]} 35. a3 {[%emt 0:02:45]} Rd8 {[%emt 0:04:52]} 36. b5 {[%emt 0:02:51]} Nxd4 {[%emt 0:02:53]} 37. Rc1+ {[%emt 0:01:51]} Bc2 {[%emt 0:00:58]} 38. Rxd4 {[%emt 0:00:48]} Rxd4 {[%emt 0:00:13]} 39. Rxc2+ {[%emt 0:00:05]} Kb6 {[%emt 0:01:26]} 40. Nf5 {[%emt 0:00:00]} Rgd7 {[%emt 0:00:00]} 41. Nxd4 {[%emt 0:00:42]} Rxd4 {[%emt 0:00:49]} 42. Rb2 {[%emt 0:01:05]} Rd3 {[%emt 0:02:53]} 43. a4 {[%emt 0:05:51]} Ka5 {[%emt 0:01:01]} 44. Nb3+ {[%emt 0:00:40]} Kb6 {[%emt 0:00:35]} 45. a5+ {[%emt 0:00:09]} Kc7 {[%emt 0:00:14]} 46. Rc2+ {[%emt 0:00:04]} Kd6 {[%emt 0:03:57]} 47. Nc5 {[%emt 0:02:55]} Rd1+ {[%emt 0:00:54]} 48. Kf2 {[%emt 0:02:33]} b6 {[%emt 0:02:10]} 49. axb6 {[%emt 0:01:31]} axb6 {[%emt 0:00:04]} 50. Ne4+ {[%emt 0:02:03]} Ke5 {[%emt 0:00:18]} 51. Re2 {[%emt 0:02:39]} Kf4 {[%emt 0:01:23]} 52. Nxf6 {[%emt 0:12:43]} Rf1+ {[%emt 0:01:54]} 53. Kxf1 {[%emt 0:00:03]} Kg3 {[%emt 0:00:21]} 54. Nh5+ {[%emt 0:00:11]} Kh2 {[%emt 0:00:11]} 55. g3+ {[%emt 0:00:07]} Kh1 {[%emt 0:00:15]} 56. Rg2 {[%emt 0:00:19]} hxg3 {[%emt 0:00:34]} 57. Nxg3# {[%emt 0:00:02]} 1-0